[Event "ETCC Women 2013"]
[Site "Warsaw"]
[Date "2013.11.11"]
[Round "4"]
[White "Muzychuk, Mariya"]
[Black "Vasiliev, Olga"]
[Result "1/2-1/2"]
[ECO "B24"]
[WhiteElo "2491"]
[BlackElo "2282"]
[PlyCount "102"]
[EventDate "2013.??.??"]
[EventCountry "POL"]
[WhiteTeam "Ukraine"]
[BlackTeam "Israel"]
[WhiteTeamCountry "UKR"]
[BlackTeamCountry "ISR"]
[TimeControl "40/5400+30:1800+30"]

1. e4 {[%emt 0:00:00]} c5 {[%emt 0:00:00]} 2. Nc3 {[%emt 0:00:00]} Nc6 {[%emt
0:00:22]} 3. Nf3 {[%emt 0:00:00]} e5 {[%emt 0:00:10]} 4. Bc4 {[%emt 0:00:03]}
d6 {[%emt 0:01:03]} 5. d3 {[%emt 0:00:11]} Be7 {[%emt 0:00:18]} 6. Nd2 {[%emt
0:01:38]} Nf6 {[%emt 0:02:13]} 7. Nf1 {[%emt 0:00:35]} Be6 {[%emt 0:03:03]} 8.
Ne3 {[%emt 0:00:31]} O-O {[%emt 0:01:52]} 9. O-O {[%emt 0:00:23]} Nd4 {[%emt 0:
02:01]} 10. a4 {[%emt 0:05:54]} Rb8 {[%emt 0:06:22]} 11. Ncd5 {[%emt 0:05:27]}
Nxd5 {[%emt 0:06:11]} 12. Nxd5 {[%emt 0:02:52]} Bg5 {[%emt 0:03:02]} 13. Be3 {
[%emt 0:06:29]} a6 {[%emt 0:05:50]} 14. a5 {[%emt 0:05:43]} Nc6 {[%emt 0:06:19]
} 15. Qd2 {[%emt 0:03:00]} Bxe3 {[%emt 0:01:47]} 16. fxe3 {[%emt 0:00:10]} Ne7
{[%emt 0:05:47]} 17. b4 {[%emt 0:07:40]} Bxd5 {[%emt 0:08:12]} 18. exd5 {[%emt
0:02:22]} Qc7 {[%emt 0:02:15]} 19. Bb3 {[%emt 0:03:47]} f5 {[%emt 0:03:07]} 20.
bxc5 {[%emt 0:05:11]} Qxc5 {[%emt 0:01:53]} 21. d4 {[%emt 0:00:09]} exd4 {
[%emt 0:03:06]} 22. exd4 {[%emt 0:00:23]} Qc7 {[%emt 0:03:43]} 23. Rae1 {[%emt
0:00:45]} Rf6 {[%emt 0:08:52]} 24. Re6 {[%emt 0:09:11]} Rbf8 {[%emt 0:06:27]}
25. c4 {[%emt 0:06:38]} Rxe6 {[%emt 0:02:59]} 26. dxe6 {[%emt 0:00:04]} Rf6 {
[%emt 0:00:05]} 27. d5 {[%emt 0:01:39]} b6 {[%emt 0:05:06]} 28. Qf2 {[%emt 0:
09:07]} bxa5 {[%emt 0:00:51]} 29. c5 {[%emt 0:01:16]} Rf8 {[%emt 0:01:19]} 30.
c6 {[%emt 0:08:57]} Rb8 {[%emt 0:00:56]} 31. Bc4 {[%emt 0:00:19]} g6 {[%emt 0:
01:23]} 32. Bxa6 {[%emt 0:04:24]} Nxd5 {[%emt 0:01:57]} 33. Bb7 {[%emt 0:00:47]
} Ne7 {[%emt 0:03:02]} 34. Qf3 {[%emt 0:01:23]} d5 {[%emt 0:03:07]} 35. Qg3 {
[%emt 0:04:40]} Qxg3 {[%emt 0:01:18]} 36. hxg3 {[%emt 0:00:03]} Kg7 {[%emt 0:
00:35]} 37. Ra1 {[%emt 0:06:07]} Kf6 {[%emt 0:00:14]} 38. Rxa5 {[%emt 0:00:11]}
Kxe6 {[%emt 0:00:35]} 39. Rc5 {[%emt 0:00:52]} Kd6 {[%emt 0:00:44]} 40. Rc1 {
[%emt 0:00:00]} Kc7 {[%emt 0:00:00]} 41. Kf2 {[%emt 0:05:24]} Rd8 {[%emt 0:02:
22]} 42. Ke3 {[%emt 0:08:24]} Rd6 {[%emt 0:00:22]} 43. Kd4 {[%emt 0:02:37]} Re6
{[%emt 0:11:43]} 44. Ba8 {[%emt 0:03:14]} Rd6 {[%emt 0:09:31]} 45. Kc5 {[%emt
0:03:06]} h5 {[%emt 0:05:17]} 46. Rb1 {[%emt 0:01:06]} Re6 {[%emt 0:02:58]} 47.
Rb7+ {[%emt 0:00:17]} Kd8 {[%emt 0:01:30]} 48. Rb8+ {[%emt 0:04:56]} Kc7 {
[%emt 0:00:44]} 49. Rb7+ {[%emt 0:00:18]} Kd8 {[%emt 0:00:12]} 50. Rb8+ {[%emt
0:00:38]} Kc7 {[%emt 0:00:24]} 51. Rb7+ {[%emt 0:00:17]} Kd8 {[%emt 0:00:09]}
1/2-1/2

[Event "ETCC Women 2013"]
[Site "Warsaw"]
[Date "2013.11.11"]
[Round "4"]
[White "Papp, Petra"]
[Black "Makropoulou, Marina"]
[Result "1-0"]
[ECO "C87"]
[WhiteElo "2300"]
[BlackElo "2234"]
[PlyCount "101"]
[EventDate "2013.??.??"]
[EventCountry "POL"]
[WhiteTeam "Ungarn"]
[BlackTeam "Griechenland"]
[WhiteTeamCountry "HUN"]
[BlackTeamCountry "GRE"]
[TimeControl "40/5400+30:1800+30"]

1. e4 {[%emt 0:00:00]} e5 {[%emt 0:00:00]} 2. Nf3 {[%emt 0:00:00]} Nc6 {[%emt
0:00:00]} 3. Bb5 {[%emt 0:00:06]} a6 {[%emt 0:00:11]} 4. Ba4 {[%emt 0:00:18]}
Nf6 {[%emt 0:00:55]} 5. O-O {[%emt 0:00:25]} Be7 {[%emt 0:01:11]} 6. Re1 {
[%emt 0:01:34]} d6 {[%emt 0:02:03]} 7. Bxc6+ {[%emt 0:03:31]} bxc6 {[%emt 0:00:
04]} 8. d4 {[%emt 0:00:13]} exd4 {[%emt 0:03:18]} 9. Nxd4 {[%emt 0:00:31]} Bd7
{[%emt 0:02:24]} 10. Nc3 {[%emt 0:02:39]} O-O {[%emt 0:02:50]} 11. h3 {[%emt 0:
00:22]} Rb8 {[%emt 0:07:24]} 12. Qd3 {[%emt 0:07:19]} c5 {[%emt 0:05:51]} 13.
Nf3 {[%emt 0:02:21]} Bb5 {[%emt 0:10:01]} 14. Qd2 {[%emt 0:19:34]} Re8 {[%emt
0:08:41]} 15. b3 {[%emt 0:05:12]} Nd7 {[%emt 0:13:11]} 16. Nd5 {[%emt 0:15:52]}
Bf6 {[%emt 0:02:58]} 17. Rb1 {[%emt 0:00:50]} Bc6 {[%emt 0:00:50]} 18. c4 {
[%emt 0:02:16]} Ne5 {[%emt 0:02:52]} 19. Nxe5 {[%emt 0:07:02]} Bxe5 {[%emt 0:
00:17]} 20. Bb2 {[%emt 0:00:42]} Bxd5 {[%emt 0:02:34]} 21. exd5 {[%emt 0:02:42]
} Bxb2 {[%emt 0:04:33]} 22. Rxb2 {[%emt 0:02:24]} Qd7 {[%emt 0:09:32]} 23. Rbb1
{[%emt 0:00:55]} h6 {[%emt 0:02:40]} 24. Qa5 {[%emt 0:03:21]} Kh7 {[%emt 0:04:
18]} 25. Rxe8 {[%emt 0:05:29]} Rxe8 {[%emt 0:00:34]} 26. Qxa6 {[%emt 0:00:21]}
Re2 {[%emt 0:02:50]} 27. Rf1 {[%emt 0:00:55]} f5 {[%emt 0:00:36]} 28. Qa5 {
[%emt 0:01:24]} Qe7 {[%emt 0:02:05]} 29. a4 {[%emt 0:02:43]} Qe5 {[%emt 0:03:
50]} 30. Qxc7 {[%emt 0:01:30]} f4 {[%emt 0:00:12]} 31. Qf7 {[%emt 0:02:02]} Rb2
{[%emt 0:04:44]} 32. Qe6 {[%emt 0:01:12]} Qg5 {[%emt 0:01:39]} 33. Qxd6 {[%emt
0:04:38]} Rxb3 {[%emt 0:00:21]} 34. Qe6 {[%emt 0:00:56]} f3 {[%emt 0:00:42]}
35. Qe4+ {[%emt 0:00:26]} Qg6 {[%emt 0:00:38]} 36. Qxg6+ {[%emt 0:02:38]} Kxg6
{[%emt 0:00:01]} 37. Ra1 {[%emt 0:00:45]} Kf6 {[%emt 0:00:26]} 38. a5 {[%emt 0:
00:07]} Rb7 {[%emt 0:00:07]} 39. a6 {[%emt 0:00:27]} Ra7 {[%emt 0:00:02]} 40.
gxf3 {[%emt 0:00:00]} Ke7 {[%emt 0:00:00]} 41. Kf1 {[%emt 0:04:49]} Kd8 {[%emt
0:01:38]} 42. Ke2 {[%emt 0:00:48]} Kc8 {[%emt 0:00:01]} 43. Kd3 {[%emt 0:01:13]
} Kb8 {[%emt 0:00:01]} 44. Ra5 {[%emt 0:01:34]} Rf7 {[%emt 0:00:27]} 45. a7+ {
[%emt 0:00:14]} Ka8 {[%emt 0:00:04]} 46. Ke4 {[%emt 0:00:16]} Re7+ {[%emt 0:00:
50]} 47. Kf5 {[%emt 0:00:23]} Rf7+ {[%emt 0:00:54]} 48. Ke6 {[%emt 0:00:14]}
Rf6+ {[%emt 0:00:16]} 49. Ke7 {[%emt 0:00:12]} Rxf3 {[%emt 0:02:35]} 50. d6 {
[%emt 0:00:10]} Rxf2 {[%emt 0:00:21]} 51. d7 {[%emt 0:00:09]} 1-0

[Event "ETCC Women 2013"]
[Site "Warsaw"]
[Date "2013.11.11"]
[Round "4"]
[White "Pavlidou, Ekaterini"]
[Black "Gara, Ticia"]
[Result "1-0"]
[ECO "D70"]
[WhiteElo "2199"]
[BlackElo "2350"]
[PlyCount "89"]
[EventDate "2013.??.??"]
[EventCountry "POL"]
[WhiteTeam "Griechenland"]
[BlackTeam "Ungarn"]
[WhiteTeamCountry "GRE"]
[BlackTeamCountry "HUN"]
[TimeControl "40/5400+30:1800+30"]

1. d4 {[%emt 0:00:00]} Nf6 {[%emt 0:00:00]} 2. c4 {[%emt 0:00:00]} g6 {[%emt 0:
00:00]} 3. Nf3 {[%emt 0:00:17]} Bg7 {[%emt 0:00:38]} 4. e3 {[%emt 0:00:36]} c5
{[%emt 0:06:22]} 5. d5 {[%emt 0:00:43]} d6 {[%emt 0:01:24]} 6. Nc3 {[%emt 0:01:
00]} e6 {[%emt 0:01:46]} 7. Be2 {[%emt 0:03:15]} exd5 {[%emt 0:02:31]} 8. cxd5
{[%emt 0:00:13]} O-O {[%emt 0:00:09]} 9. h3 {[%emt 0:03:27]} Na6 {[%emt 0:02:
29]} 10. O-O {[%emt 0:04:20]} Nc7 {[%emt 0:04:14]} 11. Re1 {[%emt 0:05:09]} Re8
{[%emt 0:05:39]} 12. Bc4 {[%emt 0:03:56]} Rb8 {[%emt 0:08:36]} 13. a4 {[%emt 0:
01:00]} a6 {[%emt 0:06:27]} 14. a5 {[%emt 0:00:45]} b5 {[%emt 0:01:05]} 15.
axb6 {[%emt 0:00:33]} Rxb6 {[%emt 0:00:04]} 16. e4 {[%emt 0:03:27]} Nd7 {[%emt
0:09:41]} 17. Bg5 {[%emt 0:03:56]} Bf6 {[%emt 0:03:41]} 18. Bxf6 {[%emt 0:02:
32]} Qxf6 {[%emt 0:01:12]} 19. Na4 {[%emt 0:03:32]} Rb4 {[%emt 0:01:05]} 20. b3
{[%emt 0:00:44]} Ne5 {[%emt 0:01:45]} 21. Nxe5 {[%emt 0:01:40]} Qxe5 {[%emt 0:
15:30]} 22. Qd2 {[%emt 0:03:37]} Nb5 {[%emt 0:07:32]} 23. Nb2 {[%emt 0:02:44]}
Qc3 {[%emt 0:01:02]} 24. Qxc3 {[%emt 0:01:36]} Nxc3 {[%emt 0:00:03]} 25. Re3 {
[%emt 0:07:18]} Nb5 {[%emt 0:11:42]} 26. Nd3 {[%emt 0:00:20]} Rxc4 {[%emt 0:00:
36]} 27. bxc4 {[%emt 0:00:09]} Nd4 {[%emt 0:00:09]} 28. Ra2 {[%emt 0:01:41]} f6
{[%emt 0:01:09]} 29. Re1 {[%emt 0:03:05]} Kf7 {[%emt 0:01:49]} 30. f3 {[%emt 0:
02:31]} Ke7 {[%emt 0:00:39]} 31. h4 {[%emt 0:01:32]} Kd7 {[%emt 0:00:43]} 32.
Kf2 {[%emt 0:05:25]} Kc7 {[%emt 0:00:33]} 33. g4 {[%emt 0:01:03]} h6 {[%emt 0:
03:30]} 34. Kg3 {[%emt 0:02:33]} Kb6 {[%emt 0:02:35]} 35. Nf4 {[%emt 0:01:51]}
g5 {[%emt 0:00:15]} 36. hxg5 {[%emt 0:00:32]} fxg5 {[%emt 0:00:14]} 37. Ne2 {
[%emt 0:00:43]} Rf8 {[%emt 0:00:22]} 38. Rb1+ {[%emt 0:00:49]} Kc7 {[%emt 0:00:
05]} 39. Nxd4 {[%emt 0:00:18]} cxd4 {[%emt 0:00:11]} 40. Rd2 {[%emt 0:00:00]}
Bd7 {[%emt 0:00:00]} 41. Rxd4 {[%emt 0:00:46]} a5 {[%emt 0:00:29]} 42. Rd2 {
[%emt 0:00:23]} Ra8 {[%emt 0:00:42]} 43. Rh2 {[%emt 0:02:22]} a4 {[%emt 0:01:
00]} 44. Rxh6 {[%emt 0:00:34]} a3 {[%emt 0:00:07]} 45. Ra1 {[%emt 0:00:14]} 1-0

[Event "ETCC Women 2013"]
[Site "Warsaw"]
[Date "2013.11.11"]
[Round "4"]
[White "Purgar, Ivona"]
[Black "Umudova, Nargiz"]
[Result "1/2-1/2"]
[ECO "B17"]
[WhiteElo "2136"]
[BlackElo "2253"]
[PlyCount "86"]
[EventDate "2013.??.??"]
[EventCountry "POL"]
[WhiteTeam "Kroatien"]
[BlackTeam "Aserbeidschan"]
[WhiteTeamCountry "CRO"]
[BlackTeamCountry "AZE"]
[TimeControl "40/5400+30:1800+30"]

1. e4 {[%emt 0:00:00]} c6 {[%emt 0:00:00]} 2. d4 {[%emt 0:00:00]} d5 {[%emt 0:
00:00]} 3. Nc3 {[%emt 0:00:01]} dxe4 {[%emt 0:00:00]} 4. Nxe4 {[%emt 0:00:09]}
Nd7 {[%emt 0:00:11]} 5. Bd3 {[%emt 0:04:22]} Ngf6 {[%emt 0:00:38]} 6. c3 {
[%emt 0:03:26]} g6 {[%emt 0:20:34]} 7. Nxf6+ {[%emt 0:07:15]} Nxf6 {[%emt 0:00:
33]} 8. h3 {[%emt 0:07:14]} Bg7 {[%emt 0:00:36]} 9. Nf3 {[%emt 0:00:40]} O-O {
[%emt 0:01:14]} 10. O-O {[%emt 0:00:41]} Bf5 {[%emt 0:10:26]} 11. Ne5 {[%emt 0:
17:19]} Bxd3 {[%emt 0:17:52]} 12. Nxd3 {[%emt 0:02:29]} Qd5 {[%emt 0:07:29]}
13. Re1 {[%emt 0:03:46]} Rfe8 {[%emt 0:00:53]} 14. Bf4 {[%emt 0:14:42]} Qf5 {
[%emt 0:09:29]} 15. Qd2 {[%emt 0:10:29]} Rad8 {[%emt 0:03:07]} 16. Re5 {[%emt
0:06:44]} Qd7 {[%emt 0:02:37]} 17. Bh6 {[%emt 0:02:04]} Bh8 {[%emt 0:04:18]}
18. Rae1 {[%emt 0:03:06]} b6 {[%emt 0:01:14]} 19. Qe2 {[%emt 0:03:02]} e6 {
[%emt 0:05:45]} 20. Re3 {[%emt 0:00:46]} Nd5 {[%emt 0:04:18]} 21. Re4 {[%emt 0:
00:55]} Nc7 {[%emt 0:02:29]} 22. Ne5 {[%emt 0:03:11]} Bxe5 {[%emt 0:06:03]} 23.
dxe5 {[%emt 0:00:51]} Qd3 {[%emt 0:00:38]} 24. Qg4 {[%emt 0:00:48]} Rd7 {[%emt
0:00:53]} 25. Qh4 {[%emt 0:01:17]} Rc8 {[%emt 0:00:39]} 26. Bg5 {[%emt 0:01:01]
} h5 {[%emt 0:00:30]} 27. g4 {[%emt 0:03:15]} Qc2 {[%emt 0:00:23]} 28. R4e2 {
[%emt 0:01:03]} Qa4 {[%emt 0:00:11]} 29. b4 {[%emt 0:00:43]} Rd1 {[%emt 0:00:
35]} 30. gxh5 {[%emt 0:00:20]} Rxe1+ {[%emt 0:00:19]} 31. Rxe1 {[%emt 0:00:04]}
Qc2 {[%emt 0:00:13]} 32. h6 {[%emt 0:00:35]} Kh7 {[%emt 0:00:23]} 33. Qf4 {
[%emt 0:01:44]} Qf5 {[%emt 0:00:04]} 34. Qxf5 {[%emt 0:01:07]} gxf5 {[%emt 0:
00:18]} 35. Rd1 {[%emt 0:00:59]} Nd5 {[%emt 0:00:28]} 36. Rd3 {[%emt 0:01:06]}
b5 {[%emt 0:01:02]} 37. Rg3 {[%emt 0:00:24]} Rg8 {[%emt 0:01:04]} 38. h4 {
[%emt 0:00:14]} a6 {[%emt 0:00:51]} 39. Kf1 {[%emt 0:00:14]} Ra8 {[%emt 0:00:
37]} 40. Ke2 {[%emt 0:00:00]} a5 {[%emt 0:00:00]} 41. a3 {[%emt 0:10:07]} axb4
{[%emt 0:15:48]} 42. cxb4 {[%emt 0:01:21]} Ra7 {[%emt 0:01:48]} 43. Rd3 {[%emt
0:09:40]} Rc7 {[%emt 0:03:00]} 1/2-1/2

[Event "ETCC Women 2013"]
[Site "Warsaw"]
[Date "2013.11.11"]
[Round "4"]
[White "Raeva, Elitsa"]
[Black "Kopinits, Anna-Christina"]
[Result "1-0"]
[ECO "E12"]
[WhiteElo "2361"]
[BlackElo "2263"]
[PlyCount "69"]
[EventDate "2013.??.??"]
[EventCountry "POL"]
[WhiteTeam "Bulgarien"]
[BlackTeam "Österreich"]
[WhiteTeamCountry "BUL"]
[BlackTeamCountry "AUT"]
[TimeControl "40/5400+30:1800+30"]

1. d4 {[%emt 0:00:00]} Nf6 {[%emt 0:00:00]} 2. c4 {[%emt 0:00:00]} e6 {[%emt 0:
00:00]} 3. Nf3 {[%emt 0:00:00]} b6 {[%emt 0:00:00]} 4. a3 {[%emt 0:00:08]} Ba6
{[%emt 0:00:14]} 5. Qc2 {[%emt 0:00:26]} Bb7 {[%emt 0:00:20]} 6. Nc3 {[%emt 0:
00:25]} c5 {[%emt 0:00:14]} 7. e4 {[%emt 0:01:39]} cxd4 {[%emt 0:00:20]} 8.
Nxd4 {[%emt 0:00:07]} Nc6 {[%emt 0:00:12]} 9. Nxc6 {[%emt 0:02:07]} Bxc6 {
[%emt 0:00:12]} 10. Bg5 {[%emt 0:07:25]} h6 {[%emt 0:03:37]} 11. Bh4 {[%emt 0:
01:05]} Qb8 {[%emt 0:02:29]} 12. Rd1 {[%emt 0:08:50]} Nxe4 {[%emt 0:06:06]} 13.
Nxe4 {[%emt 0:10:03]} Qe5 {[%emt 0:05:42]} 14. f3 {[%emt 0:02:03]} f5 {[%emt 0:
22:26]} 15. Bg3 {[%emt 0:02:46]} Bxe4 {[%emt 0:00:28]} 16. fxe4 {[%emt 0:01:19]
} f4 {[%emt 0:01:17]} 17. Bf2 {[%emt 0:01:57]} Be7 {[%emt 0:00:46]} 18. Be2 {
[%emt 0:03:03]} Rc8 {[%emt 0:01:31]} 19. O-O {[%emt 0:03:01]} Rc7 {[%emt 0:06:
59]} 20. b4 {[%emt 0:03:32]} h5 {[%emt 0:04:22]} 21. Bd4 {[%emt 0:02:35]} Qg5 {
[%emt 0:00:20]} 22. e5 {[%emt 0:01:01]} Qh6 {[%emt 0:03:35]} 23. Qe4 {[%emt 0:
04:26]} g5 {[%emt 0:02:36]} 24. c5 {[%emt 0:04:49]} bxc5 {[%emt 0:02:06]} 25.
Bxc5 {[%emt 0:00:24]} Bxc5+ {[%emt 0:01:44]} 26. bxc5 {[%emt 0:00:06]} Qg7 {
[%emt 0:07:05]} 27. Rd6 {[%emt 0:04:06]} O-O {[%emt 0:09:57]} 28. c6 {[%emt 0:
04:25]} Rxc6 {[%emt 0:02:24]} 29. Rxc6 {[%emt 0:00:20]} dxc6 {[%emt 0:00:03]}
30. Bc4 {[%emt 0:00:14]} Kh8 {[%emt 0:01:22]} 31. Bxe6 {[%emt 0:05:33]} c5 {
[%emt 0:05:02]} 32. Rd1 {[%emt 0:02:40]} g4 {[%emt 0:01:00]} 33. Rd7 {[%emt 0:
01:52]} Qh6 {[%emt 0:00:31]} 34. Bf5 {[%emt 0:02:05]} Kg8 {[%emt 0:01:16]} 35.
Qd5+ {[%emt 0:00:53]} 1-0

[Event "ETCC Women 2013"]
[Site "Warsaw"]
[Date "2013.11.11"]
[Round "4"]
[White "Rajlich, Iweta"]
[Black "Galojan, Lilit"]
[Result "1-0"]
[ECO "E46"]
[WhiteElo "2404"]
[BlackElo "2301"]
[PlyCount "131"]
[EventDate "2013.??.??"]
[EventCountry "POL"]
[WhiteTeam "Polen"]
[BlackTeam "Armenien"]
[WhiteTeamCountry "POL"]
[BlackTeamCountry "ARM"]
[TimeControl "40/5400+30:1800+30"]

1. d4 {[%emt 0:00:00]} Nf6 {[%emt 0:00:00]} 2. c4 {[%emt 0:00:00]} e6 {[%emt 0:
00:00]} 3. Nc3 {[%emt 0:00:00]} Bb4 {[%emt 0:00:01]} 4. e3 {[%emt 0:00:00]} O-O
{[%emt 0:00:49]} 5. Nge2 {[%emt 0:00:00]} Re8 {[%emt 0:01:04]} 6. a3 {[%emt 0:
00:59]} Bf8 {[%emt 0:00:34]} 7. Nf4 {[%emt 0:08:13]} d6 {[%emt 0:10:07]} 8. Be2
{[%emt 0:03:02]} e5 {[%emt 0:21:17]} 9. Nfd5 {[%emt 0:07:52]} Nbd7 {[%emt 0:00:
31]} 10. O-O {[%emt 0:02:27]} c6 {[%emt 0:01:47]} 11. Nxf6+ {[%emt 0:01:02]}
Nxf6 {[%emt 0:00:28]} 12. d5 {[%emt 0:00:54]} e4 {[%emt 0:05:07]} 13. b4 {
[%emt 0:01:16]} Bf5 {[%emt 0:05:45]} 14. dxc6 {[%emt 0:01:18]} bxc6 {[%emt 0:
00:05]} 15. Bb2 {[%emt 0:03:16]} Nd7 {[%emt 0:00:38]} 16. f4 {[%emt 0:06:19]}
Nb6 {[%emt 0:10:22]} 17. Rc1 {[%emt 0:04:20]} Rb8 {[%emt 0:11:49]} 18. Ba1 {
[%emt 0:08:13]} Qc7 {[%emt 0:12:42]} 19. g4 {[%emt 0:05:37]} Bc8 {[%emt 0:02:
26]} 20. f5 {[%emt 0:02:57]} Nd7 {[%emt 0:03:40]} 21. Rf4 {[%emt 0:05:01]} a5 {
[%emt 0:00:06]} 22. b5 {[%emt 0:00:42]} Nc5 {[%emt 0:03:47]} 23. Rb1 {[%emt 0:
11:59]} Bb7 {[%emt 0:03:04]} 24. Na4 {[%emt 0:03:14]} Nxa4 {[%emt 0:05:02]} 25.
Qxa4 {[%emt 0:00:08]} Qb6 {[%emt 0:00:31]} 26. Bd4 {[%emt 0:00:36]} c5 {[%emt
0:00:04]} 27. Bc3 {[%emt 0:01:48]} d5 {[%emt 0:00:25]} 28. cxd5 {[%emt 0:05:40]
} Qh6 {[%emt 0:01:12]} 29. Be1 {[%emt 0:06:15]} Bd6 {[%emt 0:00:24]} 30. Bg3 {
[%emt 0:00:01]} Ra8 {[%emt 0:00:27]} 31. b6 {[%emt 0:01:27]} Bxd5 {[%emt 0:00:
35]} 32. f6 {[%emt 0:03:55]} Bxf4 {[%emt 0:00:13]} 33. Bxf4 {[%emt 0:00:03]}
Qxf6 {[%emt 0:00:06]} 34. b7 {[%emt 0:00:25]} Bxb7 {[%emt 0:00:09]} 35. Rxb7 {
[%emt 0:00:05]} g5 {[%emt 0:01:12]} 36. Bg3 {[%emt 0:00:01]} Re7 {[%emt 0:00:
53]} 37. Rb1 {[%emt 0:02:23]} Qc3 {[%emt 0:00:22]} 38. Qb3 {[%emt 0:01:48]}
Qxb3 {[%emt 0:00:32]} 39. Rxb3 {[%emt 0:00:01]} Rd7 {[%emt 0:00:35]} 40. Be1 {
[%emt 0:00:00]} a4 {[%emt 0:00:00]} 41. Rc3 {[%emt 0:04:49]} Rc7 {[%emt 0:12:
09]} 42. Bg3 {[%emt 0:07:34]} Rcc8 {[%emt 0:04:56]} 43. Rc4 {[%emt 0:00:22]} h6
{[%emt 0:03:13]} 44. Kf2 {[%emt 0:03:07]} Rd8 {[%emt 0:03:48]} 45. Ke1 {[%emt
0:02:51]} Ra7 {[%emt 0:05:36]} 46. Rxc5 {[%emt 0:02:38]} Rb7 {[%emt 0:00:51]}
47. Bb5 {[%emt 0:00:58]} f6 {[%emt 0:03:11]} 48. Ke2 {[%emt 0:02:46]} Kg7 {
[%emt 0:00:06]} 49. Be1 {[%emt 0:03:07]} Rdb8 {[%emt 0:00:09]} 50. Bxa4 {[%emt
0:00:27]} Ra8 {[%emt 0:00:41]} 51. Rc4 {[%emt 0:03:21]} Rb2+ {[%emt 0:00:57]}
52. Bd2 {[%emt 0:01:42]} Ra7 {[%emt 0:00:19]} 53. Bc2 {[%emt 0:01:01]} Rxa3 {
[%emt 0:00:35]} 54. Bc1 {[%emt 0:01:52]} Rxc2+ {[%emt 0:00:43]} 55. Rxc2 {
[%emt 0:00:02]} Ra4 {[%emt 0:00:42]} 56. Bb2 {[%emt 0:00:18]} Ra6 {[%emt 0:00:
20]} 57. Rc4 {[%emt 0:01:42]} Re6 {[%emt 0:00:12]} 58. Rb4 {[%emt 0:00:35]} h5
{[%emt 0:00:46]} 59. h3 {[%emt 0:01:27]} Rc6 {[%emt 0:00:48]} 60. Kd2 {[%emt 0:
00:38]} hxg4 {[%emt 0:00:17]} 61. hxg4 {[%emt 0:00:01]} Rd6+ {[%emt 0:00:45]}
62. Bd4 {[%emt 0:00:34]} Ra6 {[%emt 0:00:29]} 63. Rb6 {[%emt 0:01:22]} Rxb6 {
[%emt 0:00:18]} 64. Bxb6 {[%emt 0:00:01]} f5 {[%emt 0:00:15]} 65. gxf5 {[%emt
0:00:18]} Kf6 {[%emt 0:00:02]} 66. Kc3 {[%emt 0:00:31]} 1-0

[Event "ETCC Women 2013"]
[Site "Warsaw"]
[Date "2013.11.11"]
[Round "4"]
[White "Schleining, Zoya"]
[Black "Daulyte, Deimante"]
[Result "0-1"]
[ECO "A22"]
[WhiteElo "2379"]
[BlackElo "2336"]
[PlyCount "66"]
[EventDate "2013.??.??"]
[EventCountry "POL"]
[WhiteTeam "Deutschland"]
[BlackTeam "Litauen"]
[WhiteTeamCountry "GER"]
[BlackTeamCountry "LTU"]
[TimeControl "40/5400+30:1800+30"]

1. c4 {[%emt 0:00:00]} e5 {[%emt 0:00:00]} 2. Nc3 {[%emt 0:00:01]} Nf6 {[%emt
0:00:00]} 3. g3 {[%emt 0:03:09]} c6 {[%emt 0:01:50]} 4. d4 {[%emt 0:05:07]}
exd4 {[%emt 0:05:38]} 5. Qxd4 {[%emt 0:00:25]} d5 {[%emt 0:00:06]} 6. Bg5 {
[%emt 0:12:08]} Be7 {[%emt 0:10:53]} 7. cxd5 {[%emt 0:06:53]} cxd5 {[%emt 0:00:
23]} 8. Rd1 {[%emt 0:02:44]} Be6 {[%emt 0:04:06]} 9. Bg2 {[%emt 0:01:46]} Nc6 {
[%emt 0:05:44]} 10. Qa4 {[%emt 0:01:53]} O-O {[%emt 0:00:28]} 11. Nf3 {[%emt 0:
02:22]} a6 {[%emt 0:14:55]} 12. O-O {[%emt 0:02:46]} h6 {[%emt 0:10:57]} 13.
Bxf6 {[%emt 0:11:04]} Bxf6 {[%emt 0:00:06]} 14. Nxd5 {[%emt 0:02:31]} Bxd5 {
[%emt 0:24:10]} 15. e4 {[%emt 0:00:11]} b5 {[%emt 0:00:13]} 16. Qa3 {[%emt 0:
02:36]} Bc4 {[%emt 0:04:22]} 17. Rxd8 Rfxd8 18. Re1 Be7 19. Qe3 Nb4 20. b3 Nc2
21. Qc1 {[%emt 0:39:29]} Nxe1 {[%emt 0:04:33]} 22. Qxe1 {[%emt 0:00:27]} Be6 {
[%emt 0:00:38]} 23. h3 {[%emt 0:00:56]} a5 {[%emt 0:04:59]} 24. e5 {[%emt 0:00:
40]} Bb4 {[%emt 0:01:42]} 25. Qe2 {[%emt 0:01:00]} Rab8 {[%emt 0:00:44]} 26.
Kh2 {[%emt 0:00:37]} Bc3 {[%emt 0:03:14]} 27. Qe3 {[%emt 0:00:20]} b4 {[%emt 0:
00:19]} 28. Bf1 {[%emt 0:00:17]} a4 {[%emt 0:00:33]} 29. Bc4 {[%emt 0:01:41]}
Bxc4 {[%emt 0:00:49]} 30. bxc4 {[%emt 0:00:02]} b3 {[%emt 0:00:39]} 31. axb3 {
[%emt 0:00:31]} axb3 {[%emt 0:00:10]} 32. e6 {[%emt 0:00:54]} b2 {[%emt 0:01:
17]} 33. exf7+ {[%emt 0:00:07]} Kxf7 {[%emt 0:00:33]} 0-1

[Event "ETCC Women 2013"]
[Site "Warsaw"]
[Date "2013.11.11"]
[Round "4"]
[White "Schut, Lisa"]
[Black "Ziaziulkina, Nastassia"]
[Result "1-0"]
[ECO "B90"]
[WhiteElo "2333"]
[BlackElo "2350"]
[PlyCount "53"]
[EventDate "2013.??.??"]
[EventCountry "POL"]
[WhiteTeam "Niederlande"]
[BlackTeam "Weißrussland"]
[WhiteTeamCountry "NED"]
[BlackTeamCountry "BLR"]
[TimeControl "40/5400+30:1800+30"]

1. e4 {[%emt 0:00:00]} c5 {[%emt 0:00:00]} 2. Nf3 {[%emt 0:00:00]} d6 {[%emt 0:
00:00]} 3. d4 {[%emt 0:00:00]} cxd4 {[%emt 0:00:00]} 4. Nxd4 {[%emt 0:00:00]}
Nf6 {[%emt 0:00:00]} 5. Nc3 {[%emt 0:00:00]} a6 {[%emt 0:00:00]} 6. h3 {[%emt
0:00:00]} e6 {[%emt 0:00:10]} 7. g4 {[%emt 0:00:00]} d5 {[%emt 0:00:03]} 8.
exd5 {[%emt 0:00:28]} Nxd5 {[%emt 0:00:05]} 9. Nde2 {[%emt 0:00:21]} h5 {[%emt
0:00:57]} 10. Nxd5 {[%emt 0:11:37]} exd5 {[%emt 0:00:07]} 11. gxh5 {[%emt 0:00:
29]} Nc6 {[%emt 0:09:33]} 12. Bg2 {[%emt 0:06:02]} Rxh5 {[%emt 0:00:15]} 13.
Be3 {[%emt 0:02:23]} Be6 {[%emt 0:09:49]} 14. Nf4 {[%emt 0:11:11]} Rf5 {[%emt
0:02:03]} 15. Nxe6 {[%emt 0:16:31]} fxe6 {[%emt 0:00:06]} 16. c3 {[%emt 0:03:
39]} Be7 {[%emt 0:14:12]} 17. Qe2 {[%emt 0:01:47]} Qa5 {[%emt 0:03:43]} 18. h4
{[%emt 0:02:44]} O-O-O {[%emt 0:07:00]} 19. Bb6 {[%emt 0:07:31]} Qxb6 {[%emt 0:
00:12]} 20. Qxe6+ {[%emt 0:00:06]} Kb8 {[%emt 0:04:56]} 21. Qxf5 {[%emt 0:00:
07]} Qxb2 {[%emt 0:00:04]} 22. O-O {[%emt 0:01:52]} Qxc3 {[%emt 0:01:48]} 23.
Rad1 {[%emt 0:06:17]} d4 {[%emt 0:14:48]} 24. Rb1 {[%emt 0:05:14]} Kc7 {[%emt
0:18:09]} 25. Rfc1 {[%emt 0:01:32]} Qa3 {[%emt 0:00:08]} 26. Rxb7+ {[%emt 0:02:
21]} Kxb7 {[%emt 0:00:05]} 27. Rxc6 {[%emt 0:00:15]} 1-0